[Event "Titled Tuesday Blitz January 03 Early 2023"]
[White "Filgueira, Hernan"]
[Black "Broca Jimenez, Fernando"]
[WhiteFideId "101770"]
[BlackFideId "5104742"]
[WhiteElo "2283"]
[BlackElo "2075"]
[Result "1-0"]
[Round "01"]
[TimeControl "180+2"]
[Date "2023.01.03"]
[WhiteClock "0:01:43"]
[BlackClock "0:00:04"]

1. e4 {[%clk 0:02:58]}  c5 {[%clk 0:03:00]} 2. Nf3 {[%clk 0:02:57]}  d6 {[%clk 0:03:00]} 3. Bb5+ {[%clk 0:02:56]}  Nd7 {[%clk 0:02:55]} 4. c3 {[%clk 0:02:55]}  Nf6 {[%clk 0:02:54]} 5. Qe2 {[%clk 0:02:54]}  e5 {[%clk 0:02:43]} 6. Ba4 {[%clk 0:02:52]}  Be7 {[%clk 0:02:42]} 7. d3 {[%clk 0:02:52]}  O-O {[%clk 0:02:42]} 8. O-O {[%clk 0:02:52]}  Nb6 {[%clk 0:02:36]} 9. Bc2 {[%clk 0:02:50]}  Bg4 {[%clk 0:02:34]} 10. h3 {[%clk 0:02:50]}  Bh5 {[%clk 0:02:34]} 11. Rd1 {[%clk 0:02:50]}  d5 {[%clk 0:02:17]} 12. Nbd2 {[%clk 0:02:50]}  d4 {[%clk 0:02:10]} 13. Nf1 {[%clk 0:02:49]}  Nfd7 {[%clk 0:02:00]} 14. Ng3 {[%clk 0:02:48]}  Bg6 {[%clk 0:01:58]} 15. Nh2 {[%clk 0:02:33]}  f5 {[%clk 0:01:29]} 16. exf5 {[%clk 0:02:30]}  Bxf5 {[%clk 0:01:28]} 17. Nxf5 {[%clk 0:02:29]}  Rxf5 {[%clk 0:01:29]} 18. Bb3+ {[%clk 0:02:28]}  Kh8 {[%clk 0:01:29]} 19. Qg4 {[%clk 0:02:20]}  Rf8 {[%clk 0:00:59]} 20. Nf3 {[%clk 0:02:19]}  Qc7 {[%clk 0:00:46]} 21. Bg5 {[%clk 0:02:10]}  Nf6 {[%clk 0:00:38]} 22. Qh4 {[%clk 0:02:06]}  a5 {[%clk 0:00:20]} 23. a4 {[%clk 0:02:04]}  Rae8 {[%clk 0:00:16]} 24. cxd4 {[%clk 0:02:01]}  exd4 {[%clk 0:00:15]} 25. Rac1 {[%clk 0:01:58]}  Bd6 {[%clk 0:00:14]} 26. Nxd4 {[%clk 0:01:54]}  Qd8 {[%clk 0:00:05]} 27. Ne6 {[%clk 0:01:52]}  Rxe6 {[%clk 0:00:04]} 28. Bxe6 {[%clk 0:01:51]}  Bc7 {[%clk 0:00:05]} 29. g3 {[%clk 0:01:49]}  Qd6 {[%clk 0:00:05]} 30. Bb3 {[%clk 0:01:48]}  Nfd5 {[%clk 0:00:05]} 31. Re1 {[%clk 0:01:45]}  Nd7 {[%clk 0:00:04]} 32. Be7 {[%clk 0:01:43]}  Nxe7 {[%clk 0:00:04]} 33. Qxe7 {[%clk 0:01:43]} 1-0


[Site "https://www.chess.com"]

[Event "Titled Tuesday Blitz January 03 Early 2023"]
[White "Alfaro, William"]
[Black "Renjith, Sravan"]
[WhiteFideId "6100457"]
[BlackFideId "4306783"]
[WhiteElo "2134"]
[BlackElo "2172"]
[Result "1/2-1/2"]
[Round "01"]
[TimeControl "180+2"]
[Date "2023.01.03"]
[WhiteClock "0:00:57"]
[BlackClock "0:00:16"]

1. Nf3 {[%clk 0:03:00]}  d5 {[%clk 0:02:58]} 2. g3 {[%clk 0:03:01]}  c6 {[%clk 0:02:58]} 3. Bg2 {[%clk 0:03:01]}  Nf6 {[%clk 0:02:58]} 4. O-O {[%clk 0:03:02]}  g6 {[%clk 0:02:58]} 5. d3 {[%clk 0:03:02]}  Bg7 {[%clk 0:02:58]} 6. Nbd2 {[%clk 0:03:03]}  O-O {[%clk 0:02:59]} 7. e4 {[%clk 0:03:02]}  Bg4 {[%clk 0:02:59]} 8. Re1 {[%clk 0:03:01]}  Nbd7 {[%clk 0:02:58]} 9. h3 {[%clk 0:03:01]}  Bxf3 {[%clk 0:02:58]} 10. Nxf3 {[%clk 0:03:01]}  e5 {[%clk 0:02:56]} 11. Bg5 {[%clk 0:02:58]}  Qc7 {[%clk 0:02:46]} 12. Qe2 {[%clk 0:02:51]}  Rfe8 {[%clk 0:02:42]} 13. Rad1 {[%clk 0:02:47]}  dxe4 {[%clk 0:02:37]} 14. dxe4 {[%clk 0:02:46]}  Nc5 {[%clk 0:02:36]} 15. Nd2 {[%clk 0:02:36]}  Ne6 {[%clk 0:02:32]} 16. Be3 {[%clk 0:02:35]}  Nd4 {[%clk 0:02:16]} 17. Qc4 {[%clk 0:02:31]}  Rad8 {[%clk 0:02:14]} 18. a4 {[%clk 0:02:24]}  Rd7 {[%clk 0:02:08]} 19. Nb3 {[%clk 0:02:20]}  Nxb3 {[%clk 0:02:02]} 20. Qxb3 {[%clk 0:02:16]}  b6 {[%clk 0:01:53]} 21. Qc4 {[%clk 0:02:13]}  Red8 {[%clk 0:01:52]} 22. Rxd7 {[%clk 0:02:12]}  Qxd7 {[%clk 0:01:52]} 23. b4 {[%clk 0:02:11]}  Ne8 {[%clk 0:01:45]} 24. Kh2 {[%clk 0:02:06]}  Nd6 {[%clk 0:01:45]} 25. Qc3 {[%clk 0:02:03]}  Qc7 {[%clk 0:01:39]} 26. Rd1 {[%clk 0:01:58]}  Nb7 {[%clk 0:01:27]} 27. Rxd8+ {[%clk 0:01:55]}  Nxd8 {[%clk 0:01:27]} 28. a5 {[%clk 0:01:55]}  Ne6 {[%clk 0:01:27]} 29. axb6 {[%clk 0:01:55]}  axb6 {[%clk 0:01:28]} 30. Qd3 {[%clk 0:01:50]}  Nd4 {[%clk 0:01:27]} 31. c3 {[%clk 0:01:49]}  Ne6 {[%clk 0:01:28]} 32. Bf3 {[%clk 0:01:44]}  Bf8 {[%clk 0:01:27]} 33. Qa6 {[%clk 0:01:40]}  b5 {[%clk 0:01:26]} 34. Qa8 {[%clk 0:01:40]}  Kg7 {[%clk 0:01:22]} 35. Bg4 {[%clk 0:01:40]}  Qd7 {[%clk 0:01:18]} 36. Kg2 {[%clk 0:01:32]}  h5 {[%clk 0:01:18]} 37. Bf3 {[%clk 0:01:31]}  c5 {[%clk 0:01:18]} 38. bxc5 {[%clk 0:01:27]}  Bxc5 {[%clk 0:01:18]} 39. Qd5 {[%clk 0:01:22]}  Qc7 {[%clk 0:01:12]} 40. Bc1 {[%clk 0:01:16]}  Be7 {[%clk 0:01:01]} 41. Bb2 {[%clk 0:01:15]}  Qc5 {[%clk 0:00:57]} 42. c4 {[%clk 0:01:13]}  bxc4 {[%clk 0:00:45]} 43. Bxe5+ {[%clk 0:01:13]}  Kh7 {[%clk 0:00:43]} 44. Qxc5 {[%clk 0:01:12]}  Nxc5 {[%clk 0:00:40]} 45. Be2 {[%clk 0:01:10]}  f6 {[%clk 0:00:35]} 46. Bd4 {[%clk 0:01:09]}  Nxe4 {[%clk 0:00:34]} 47. Bxc4 {[%clk 0:01:08]}  Nd6 {[%clk 0:00:34]} 48. Bd3 {[%clk 0:01:08]}  Kg7 {[%clk 0:00:33]} 49. h4 {[%clk 0:01:07]}  Kf7 {[%clk 0:00:30]} 50. Kf3 {[%clk 0:01:05]}  f5 {[%clk 0:00:26]} 51. Kf4 {[%clk 0:01:04]}  Bf6 {[%clk 0:00:25]} 52. Bxf6 {[%clk 0:01:02]}  Kxf6 {[%clk 0:00:25]} 53. f3 {[%clk 0:01:03]}  Nf7 {[%clk 0:00:25]} 54. g4 {[%clk 0:01:03]}  hxg4 {[%clk 0:00:16]} 55. fxg4 {[%clk 0:01:03]}  fxg4 {[%clk 0:00:17]} 56. Be2 {[%clk 0:01:00]}  Ne5 {[%clk 0:00:15]} 57. Bxg4 {[%clk 0:01:00]}  Nd3+ {[%clk 0:00:16]} 58. Kg3 {[%clk 0:01:00]}  Ke5 {[%clk 0:00:15]} 59. Bd1 {[%clk 0:00:59]}  Nf4 {[%clk 0:00:14]} 60. Kg4 {[%clk 0:00:58]}  Ne6 {[%clk 0:00:14]} 61. Bc2 {[%clk 0:00:57]}  Kf6 {[%clk 0:00:14]} 62. Bb3 {[%clk 0:00:57]}  Ng7 {[%clk 0:00:14]} 63. Bc2 {[%clk 0:00:55]}  Nf5 {[%clk 0:00:15]} 64. Bxf5 {[%clk 0:00:54]}  gxf5+ {[%clk 0:00:15]} 65. Kf4 {[%clk 0:00:55]}  Kg6 {[%clk 0:00:15]} 66. h5+ {[%clk 0:00:56]}  Kxh5 {[%clk 0:00:16]} 67. Kxf5 {[%clk 0:00:57]} 1/2-1/2


[Site "https://www.chess.com"]

[Event "Titled Tuesday Blitz January 03 Early 2023"]
[White "Melian, Juan Sebastian"]
[Black "Coelho, Ramyres Santana"]
[WhiteFideId "3706575"]
[BlackFideId "2120690"]
[WhiteElo "2293"]
[BlackElo "1981"]
[Result "0-1"]
[Round "01"]
[TimeControl "180+2"]
[Date "2023.01.03"]
[WhiteClock "0:00:08"]
[BlackClock "0:00:28"]

1. e4 {[%clk 0:02:57]}  c5 {[%clk 0:02:57]} 2. Nf3 {[%clk 0:02:57]}  d6 {[%clk 0:02:56]} 3. c3 {[%clk 0:02:57]}  Nf6 {[%clk 0:02:53]} 4. h3 {[%clk 0:02:55]}  g6 {[%clk 0:02:51]} 5. Bd3 {[%clk 0:02:53]}  Nc6 {[%clk 0:02:49]} 6. Bc2 {[%clk 0:02:54]}  Bg7 {[%clk 0:02:49]} 7. O-O {[%clk 0:02:55]}  O-O {[%clk 0:02:49]} 8. d4 {[%clk 0:02:55]}  cxd4 {[%clk 0:02:49]} 9. cxd4 {[%clk 0:02:56]}  b6 {[%clk 0:02:48]} 10. Nc3 {[%clk 0:02:55]}  Ba6 {[%clk 0:02:48]} 11. Re1 {[%clk 0:02:55]}  Bb7 {[%clk 0:02:49]} 12. Bf4 {[%clk 0:02:48]}  Nxd4 {[%clk 0:02:43]} 13. Nxd4 {[%clk 0:02:27]}  e5 {[%clk 0:02:42]} 14. Be3 {[%clk 0:02:11]}  exd4 {[%clk 0:02:36]} 15. Bxd4 {[%clk 0:02:12]}  Re8 {[%clk 0:02:35]} 16. Qd2 {[%clk 0:02:03]}  Rc8 {[%clk 0:02:25]} 17. Rad1 {[%clk 0:02:00]}  d5 {[%clk 0:02:19]} 18. exd5 {[%clk 0:01:54]}  Rxe1+ {[%clk 0:02:16]} 19. Qxe1 {[%clk 0:01:12]}  Nxd5 {[%clk 0:02:03]} 20. Bxg7 {[%clk 0:01:06]}  Kxg7 {[%clk 0:01:59]} 21. Bb3 {[%clk 0:00:44]}  Rxc3 {[%clk 0:01:43]} 22. bxc3 {[%clk 0:00:42]}  Qg5 {[%clk 0:01:41]} 23. Bxd5 {[%clk 0:00:26]}  Bxd5 {[%clk 0:01:42]} 24. g3 {[%clk 0:00:23]}  Bxa2 {[%clk 0:01:31]} 25. Qd2 {[%clk 0:00:22]}  Qxd2 {[%clk 0:01:00]} 26. Rxd2 {[%clk 0:00:23]}  Bc4 {[%clk 0:00:58]} 27. Rd7 {[%clk 0:00:20]}  a5 {[%clk 0:00:55]} 28. Rb7 {[%clk 0:00:19]}  b5 {[%clk 0:00:55]} 29. Ra7 {[%clk 0:00:19]}  a4 {[%clk 0:00:54]} 30. f4 {[%clk 0:00:18]}  Kf6 {[%clk 0:00:54]} 31. Ra6+ {[%clk 0:00:17]}  Kf5 {[%clk 0:00:54]} 32. Kf2 {[%clk 0:00:17]}  Ke4 {[%clk 0:00:50]} 33. Rd6 {[%clk 0:00:12]}  a3 {[%clk 0:00:44]} 34. Rd1 {[%clk 0:00:12]}  a2 {[%clk 0:00:42]} 35. h4 {[%clk 0:00:12]}  Bb3 {[%clk 0:00:39]} 36. Re1+ {[%clk 0:00:06]}  Kd3 {[%clk 0:00:39]} 37. f5 {[%clk 0:00:04]}  Kxc3 {[%clk 0:00:35]} 38. f6 {[%clk 0:00:04]}  Kb2 {[%clk 0:00:31]} 39. Ke3 {[%clk 0:00:04]}  a1=Q {[%clk 0:00:29]} 40. Rxa1 {[%clk 0:00:04]}  Kxa1 {[%clk 0:00:30]} 41. Kf4 {[%clk 0:00:05]}  Be6 {[%clk 0:00:30]} 42. Kg5 {[%clk 0:00:06]}  h5 {[%clk 0:00:29]} 43. Kh6 {[%clk 0:00:07]}  b4 {[%clk 0:00:29]} 44. g4 {[%clk 0:00:08]}  hxg4 {[%clk 0:00:28]} 0-1


[Site "https://www.chess.com"]

[Event "Titled Tuesday Blitz January 03 Early 2023"]
[White "De Souza Sa, Apolo"]
[Black "Gascon Del Nogal, Jose Rafael"]
[WhiteFideId "324225390"]
[BlackFideId "3902463"]
[WhiteElo "1929"]
[BlackElo "2459"]
[Result "0-1"]
[Round "01"]
[TimeControl "180+2"]
[Date "2023.01.03"]
[WhiteClock "0:01:00"]
[BlackClock "0:01:34"]

1. d4 {[%clk 0:03:00]}  Nf6 {[%clk 0:02:58]} 2. c4 {[%clk 0:03:00]}  g6 {[%clk 0:02:57]} 3. f3 {[%clk 0:03:01]}  Bg7 {[%clk 0:02:56]} 4. e4 {[%clk 0:03:01]}  d6 {[%clk 0:02:55]} 5. Nc3 {[%clk 0:03:01]}  O-O {[%clk 0:02:53]} 6. Nge2 {[%clk 0:03:02]}  c5 {[%clk 0:02:53]} 7. d5 {[%clk 0:03:02]}  e6 {[%clk 0:02:53]} 8. Ng3 {[%clk 0:03:02]}  exd5 {[%clk 0:02:52]} 9. cxd5 {[%clk 0:03:03]}  h5 {[%clk 0:02:51]} 10. Be2 {[%clk 0:03:02]}  h4 {[%clk 0:02:51]} 11. Nf1 {[%clk 0:03:02]}  Nh7 {[%clk 0:02:51]} 12. Be3 {[%clk 0:03:00]}  f5 {[%clk 0:02:50]} 13. exf5 {[%clk 0:03:00]}  gxf5 {[%clk 0:02:50]} 14. Qd2 {[%clk 0:02:53]}  Qf6 {[%clk 0:02:24]} 15. Bf4 {[%clk 0:02:44]}  Nd7 {[%clk 0:02:20]} 16. Ne3 {[%clk 0:02:40]}  Ne5 {[%clk 0:02:19]} 17. O-O {[%clk 0:02:32]}  Ng6 {[%clk 0:02:18]} 18. g3 {[%clk 0:02:14]}  hxg3 {[%clk 0:02:08]} 19. hxg3 {[%clk 0:02:09]}  Nxf4 {[%clk 0:02:07]} 20. gxf4 {[%clk 0:02:09]}  Qd4 {[%clk 0:02:06]} 21. Rad1 {[%clk 0:01:53]}  Qxf4 {[%clk 0:01:41]} 22. Nc4 {[%clk 0:01:03]}  Qg3+ {[%clk 0:01:35]} 23. Kh1 {[%clk 0:01:02]}  Qh3+ {[%clk 0:01:34]} 24. Kg1 {[%clk 0:01:00]}  Bd4+ {[%clk 0:01:34]} 0-1


[Site "https://www.chess.com"]

[Event "Titled Tuesday Blitz January 03 Early 2023"]
[White "Fiorito, Francisco"]
[Black "Adury, Anant"]
[WhiteFideId "180165"]
[BlackFideId "30964687"]
[WhiteElo "2305"]
[BlackElo "2123"]
[Result "0-1"]
[Round "01"]
[TimeControl "180+2"]
[Date "2023.01.03"]
[WhiteClock "0:00:09"]
[BlackClock "0:00:05"]

1. Nf3 {[%clk 0:02:58]}  Nf6 {[%clk 0:02:49]} 2. d4 {[%clk 0:02:58]}  d6 {[%clk 0:02:48]} 3. Bf4 {[%clk 0:02:55]}  Nc6 {[%clk 0:02:47]} 4. e3 {[%clk 0:02:54]}  Bg4 {[%clk 0:02:45]} 5. h3 {[%clk 0:02:54]}  Bh5 {[%clk 0:02:44]} 6. Be2 {[%clk 0:02:53]}  e6 {[%clk 0:02:26]} 7. O-O {[%clk 0:02:51]}  Be7 {[%clk 0:02:25]} 8. c4 {[%clk 0:02:51]}  O-O {[%clk 0:02:25]} 9. Nc3 {[%clk 0:02:51]}  Re8 {[%clk 0:02:25]} 10. Bh2 {[%clk 0:02:51]}  Bf8 {[%clk 0:02:25]} 11. Re1 {[%clk 0:02:46]}  e5 {[%clk 0:02:24]} 12. Rc1 {[%clk 0:02:35]}  exd4 {[%clk 0:02:21]} 13. Nxd4 {[%clk 0:02:30]}  Bxe2 {[%clk 0:02:19]} 14. Ndxe2 {[%clk 0:02:25]}  Ne4 {[%clk 0:02:09]} 15. b3 {[%clk 0:02:19]}  Nxc3 {[%clk 0:02:09]} 16. Nxc3 {[%clk 0:02:20]}  g6 {[%clk 0:02:07]} 17. Nd5 {[%clk 0:02:16]}  Bg7 {[%clk 0:02:05]} 18. c5 {[%clk 0:02:15]}  Be5 {[%clk 0:01:52]} 19. Qf3 {[%clk 0:01:33]}  f5 {[%clk 0:01:26]} 20. Red1 {[%clk 0:01:27]}  Kg7 {[%clk 0:01:09]} 21. cxd6 {[%clk 0:01:25]}  Qxd6 {[%clk 0:01:03]} 22. Bxe5+ {[%clk 0:01:23]}  Qxe5 {[%clk 0:01:02]} 23. Qf4 {[%clk 0:01:18]}  Rac8 {[%clk 0:00:33]} 24. Qxe5+ {[%clk 0:01:01]}  Rxe5 {[%clk 0:00:34]} 25. Nf4 {[%clk 0:01:00]}  Re7 {[%clk 0:00:23]} 26. Rc5 {[%clk 0:00:55]}  Kf7 {[%clk 0:00:16]} 27. Rcd5 {[%clk 0:00:49]}  Rce8 {[%clk 0:00:15]} 28. Rd7 {[%clk 0:00:49]}  Rxd7 {[%clk 0:00:14]} 29. Rxd7+ {[%clk 0:00:50]}  Re7 {[%clk 0:00:15]} 30. Rd2 {[%clk 0:00:50]}  Ke8 {[%clk 0:00:14]} 31. Nd5 {[%clk 0:00:50]}  Rf7 {[%clk 0:00:12]} 32. g4 {[%clk 0:00:50]}  Kf8 {[%clk 0:00:13]} 33. g5 {[%clk 0:00:51]}  Rd7 {[%clk 0:00:11]} 34. Rd1 {[%clk 0:00:47]}  Ne7 {[%clk 0:00:10]} 35. Nc3 {[%clk 0:00:46]}  Rxd1+ {[%clk 0:00:11]} 36. Nxd1 {[%clk 0:00:47]}  Kf7 {[%clk 0:00:11]} 37. Kg2 {[%clk 0:00:47]}  Ke6 {[%clk 0:00:12]} 38. Kf3 {[%clk 0:00:46]}  Ke5 {[%clk 0:00:12]} 39. Ke2 {[%clk 0:00:44]}  Nd5 {[%clk 0:00:13]} 40. f4+ {[%clk 0:00:43]}  Kd6 {[%clk 0:00:13]} 41. a3 {[%clk 0:00:42]}  c5 {[%clk 0:00:13]} 42. Kd3 {[%clk 0:00:42]}  b5 {[%clk 0:00:13]} 43. h4 {[%clk 0:00:42]}  a5 {[%clk 0:00:11]} 44. Nb2 {[%clk 0:00:41]}  Nb6 {[%clk 0:00:11]} 45. Kc3 {[%clk 0:00:37]}  Kd5 {[%clk 0:00:10]} 46. Kd3 {[%clk 0:00:37]}  a4 {[%clk 0:00:09]} 47. bxa4 {[%clk 0:00:36]}  Nxa4 {[%clk 0:00:10]} 48. Nd1 {[%clk 0:00:22]}  c4+ {[%clk 0:00:10]} 49. Ke2 {[%clk 0:00:22]}  Kc5 {[%clk 0:00:08]} 50. Kd2 {[%clk 0:00:20]}  b4 {[%clk 0:00:08]} 51. axb4+ {[%clk 0:00:21]}  Kxb4 {[%clk 0:00:08]} 52. Nf2 {[%clk 0:00:21]}  Nc5 {[%clk 0:00:08]} 53. Kc2 {[%clk 0:00:19]}  c3 {[%clk 0:00:07]} 54. Nh3 {[%clk 0:00:15]}  Kc4 {[%clk 0:00:07]} 55. Nf2 {[%clk 0:00:14]}  Na6 {[%clk 0:00:07]} 56. Kd1 {[%clk 0:00:11]}  Nb4 {[%clk 0:00:08]} 57. h5 {[%clk 0:00:11]}  Nd3 {[%clk 0:00:07]} 58. Nh3 {[%clk 0:00:09]}  Kb3 {[%clk 0:00:05]} 0-1


[Site "https://www.chess.com"]

[Event "Titled Tuesday Blitz January 03 Early 2023"]
[White "Ilinca Ilinca, Felix Antonio"]
[Black "Ehlvest, Jaan"]
[WhiteFideId "54764998"]
[BlackFideId "4500016"]
[WhiteElo "2266"]
[BlackElo "2530"]
[Result "1-0"]
[Round "01"]
[TimeControl "180+2"]
[Date "2023.01.03"]
[WhiteClock "0:00:16"]
[BlackClock "0:00:02"]

1. c4 {[%clk 0:02:59]}  e6 {[%clk 0:02:57]} 2. Nc3 {[%clk 0:02:59]}  b6 {[%clk 0:02:56]} 3. d4 {[%clk 0:02:55]}  Bb4 {[%clk 0:02:53]} 4. e3 {[%clk 0:02:49]}  Bb7 {[%clk 0:02:50]} 5. Ne2 {[%clk 0:02:49]}  Nf6 {[%clk 0:02:47]} 6. a3 {[%clk 0:02:49]}  Be7 {[%clk 0:02:46]} 7. Ng3 {[%clk 0:02:46]}  O-O {[%clk 0:02:45]} 8. e4 {[%clk 0:02:43]}  d5 {[%clk 0:02:38]} 9. e5 {[%clk 0:02:39]}  Ne4 {[%clk 0:02:38]} 10. Ngxe4 {[%clk 0:02:37]}  dxe4 {[%clk 0:02:37]} 11. Be2 {[%clk 0:02:15]}  Nd7 {[%clk 0:02:22]} 12. Bf4 {[%clk 0:02:15]}  f5 {[%clk 0:01:54]} 13. exf6 {[%clk 0:02:09]}  Bxf6 {[%clk 0:01:43]} 14. Be3 {[%clk 0:02:02]}  c5 {[%clk 0:01:24]} 15. O-O {[%clk 0:01:16]}  cxd4 {[%clk 0:01:21]} 16. Bxd4 {[%clk 0:01:16]}  Nc5 {[%clk 0:01:20]} 17. Bxf6 {[%clk 0:00:59]}  Qxf6 {[%clk 0:01:19]} 18. Qc2 {[%clk 0:01:00]}  Rad8 {[%clk 0:01:07]} 19. Rad1 {[%clk 0:00:58]}  Nd3 {[%clk 0:00:56]} 20. g3 {[%clk 0:00:34]}  Qg6 {[%clk 0:00:37]} 21. Rd2 {[%clk 0:00:25]}  Nxf2 {[%clk 0:00:21]} 22. Rxd8 {[%clk 0:00:20]}  Nh3+ {[%clk 0:00:19]} 23. Kg2 {[%clk 0:00:20]}  e3+ {[%clk 0:00:19]} 24. Bf3 {[%clk 0:00:19]}  Qxc2+ {[%clk 0:00:15]} 25. Kxh3 {[%clk 0:00:20]}  Rxd8 {[%clk 0:00:09]} 26. Bxb7 {[%clk 0:00:19]}  h5 {[%clk 0:00:07]} 27. Bf3 {[%clk 0:00:19]}  Qf5+ {[%clk 0:00:05]} 28. Kg2 {[%clk 0:00:17]}  Rd2+ {[%clk 0:00:05]} 29. Kg1 {[%clk 0:00:18]}  Qe5 {[%clk 0:00:04]} 30. Ne4 {[%clk 0:00:17]}  Rxb2 {[%clk 0:00:03]} 31. Re1 {[%clk 0:00:16]}  Qd4 {[%clk 0:00:02]} 32. Kh1 {[%clk 0:00:16]} 1-0


[Site "https://www.chess.com"]

[Event "Titled Tuesday Blitz January 03 Early 2023"]
[White "Horobetz, Graham"]
[Black "Corredor Castellanos, Camilo"]
[WhiteFideId "2047322"]
[BlackFideId "4425871"]
[WhiteElo "2140"]
[BlackElo "1957"]
[Result "0-1"]
[Round "01"]
[TimeControl "180+2"]
[Date "2023.01.03"]
[WhiteClock "0:00:02"]
[BlackClock "0:00:21"]

1. e4 {[%clk 0:03:00]}  c5 {[%clk 0:02:59]} 2. Nf3 {[%clk 0:02:55]}  d6 {[%clk 0:02:59]} 3. d4 {[%clk 0:02:56]}  cxd4 {[%clk 0:03:00]} 4. Nxd4 {[%clk 0:02:57]}  Nf6 {[%clk 0:03:00]} 5. Nc3 {[%clk 0:02:58]}  a6 {[%clk 0:03:00]} 6. f3 {[%clk 0:02:57]}  e5 {[%clk 0:03:00]} 7. Nb3 {[%clk 0:02:56]}  Be6 {[%clk 0:02:59]} 8. Be3 {[%clk 0:02:55]}  h5 {[%clk 0:03:00]} 9. Nd5 {[%clk 0:02:52]}  Bxd5 {[%clk 0:03:00]} 10. exd5 {[%clk 0:02:52]}  Nbd7 {[%clk 0:02:59]} 11. c4 {[%clk 0:02:46]}  a5 {[%clk 0:02:58]} 12. Rc1 {[%clk 0:02:36]}  a4 {[%clk 0:01:56]} 13. Na1 {[%clk 0:02:35]}  g6 {[%clk 0:01:54]} 14. Qd2 {[%clk 0:02:31]}  h4 {[%clk 0:01:44]} 15. Be2 {[%clk 0:02:22]}  Ng8 {[%clk 0:01:30]} 16. O-O {[%clk 0:02:14]}  f5 {[%clk 0:01:28]} 17. f4 {[%clk 0:01:53]}  Ngf6 {[%clk 0:01:18]} 18. fxe5 {[%clk 0:01:41]}  Nxe5 {[%clk 0:01:15]} 19. Nc2 {[%clk 0:01:30]}  Ne4 {[%clk 0:01:14]} 20. Qb4 {[%clk 0:01:05]}  h3 {[%clk 0:01:07]} 21. g3 {[%clk 0:01:02]}  Bh6 {[%clk 0:00:59]} 22. Qxb7 {[%clk 0:00:34]}  Bxe3+ {[%clk 0:00:48]} 23. Nxe3 {[%clk 0:00:35]}  O-O {[%clk 0:00:49]} 24. Rf4 {[%clk 0:00:16]}  Rb8 {[%clk 0:00:45]} 25. Qa7 {[%clk 0:00:16]}  Rxb2 {[%clk 0:00:42]} 26. Bf1 {[%clk 0:00:16]}  Qg5 {[%clk 0:00:34]} 27. Nxf5 {[%clk 0:00:10]}  gxf5 {[%clk 0:00:28]} 28. Qe3 {[%clk 0:00:08]}  Ng4 {[%clk 0:00:25]} 29. Qd4 {[%clk 0:00:05]}  Nxh2 {[%clk 0:00:20]} 30. Qxb2 {[%clk 0:00:04]}  Qxg3+ {[%clk 0:00:20]} 31. Kh1 {[%clk 0:00:02]}  Qxf4 {[%clk 0:00:21]} 0-1


[Site "https://www.chess.com"]

[Event "Titled Tuesday Blitz January 03 Early 2023"]
[White "Fabris, Alberto"]
[Black "Leenhouts, Koen"]
[WhiteFideId "801348"]
[BlackFideId "1008439"]
[WhiteElo "2230"]
[BlackElo "2447"]
[Result "0-1"]
[Round "01"]
[TimeControl "180+2"]
[Date "2023.01.03"]
[WhiteClock "0:00:27"]
[BlackClock "0:01:17"]

1. e4 {[%clk 0:03:00]}  c5 {[%clk 0:02:59]} 2. Nf3 {[%clk 0:03:00]}  e6 {[%clk 0:02:59]} 3. d4 {[%clk 0:02:59]}  cxd4 {[%clk 0:03:00]} 4. Nxd4 {[%clk 0:02:59]}  Nc6 {[%clk 0:03:00]} 5. Nb5 {[%clk 0:02:57]}  d6 {[%clk 0:02:58]} 6. N1c3 {[%clk 0:02:54]}  a6 {[%clk 0:02:57]} 7. Na3 {[%clk 0:02:53]}  Nf6 {[%clk 0:02:58]} 8. Bg5 {[%clk 0:02:51]}  Be7 {[%clk 0:02:55]} 9. Be2 {[%clk 0:02:42]}  b5 {[%clk 0:02:45]} 10. Bxb5 {[%clk 0:02:29]}  axb5 {[%clk 0:02:43]} 11. Naxb5 {[%clk 0:02:29]}  O-O {[%clk 0:02:41]} 12. Qd2 {[%clk 0:02:26]}  Ba6 {[%clk 0:02:36]} 13. O-O {[%clk 0:02:23]}  Bxb5 {[%clk 0:02:33]} 14. Nxb5 {[%clk 0:02:20]}  Nxe4 {[%clk 0:02:31]} 15. Bxe7 {[%clk 0:02:19]}  Nxd2 {[%clk 0:01:48]} 16. Bxd8 {[%clk 0:02:18]}  Nxf1 {[%clk 0:01:49]} 17. Bg5 {[%clk 0:02:03]}  h6 {[%clk 0:01:48]} 18. Bc1 {[%clk 0:01:59]}  Rfb8 {[%clk 0:01:35]} 19. Nxd6 {[%clk 0:01:37]}  Rd8 {[%clk 0:01:34]} 20. Ne4 {[%clk 0:00:50]}  Rd1 {[%clk 0:01:29]} 21. Nc3 {[%clk 0:00:49]}  Re1 {[%clk 0:01:29]} 22. f3 {[%clk 0:00:41]}  Ne3+ {[%clk 0:01:24]} 23. Kf2 {[%clk 0:00:40]}  Nxc2 {[%clk 0:01:25]} 24. Rb1 {[%clk 0:00:37]}  Rh1 {[%clk 0:01:19]} 25. h3 {[%clk 0:00:27]}  N2b4 {[%clk 0:01:17]} 0-1


[Site "https://www.chess.com"]